Workbook

Sheet Sheet1
A1: UNIDAD OPERATIVA DE CONTRATACIONES
A2: PROGRAMA ANUAL DE CONTRATACIONES
A3: EJERCICIO 2024
A4: AL 31 DE MAYO
A6: NIVEL CENTRAL
A7: MODALIDAD | B7: PAC PROGRAMADO | D7: PACS C/LLAMADOS EN EJECUCION (PUBLICADOS) | G7: PAC EN PROCESO DE ELABORACION | J7: PAC CANCELADOS Y/O DESIERTOS | M7: PAC ADJUDICADOS
B8: CANT. | C8: MONTO | D8: CANT. | E8: MONTO | F8: % | G8: CANT. | H8: MONTO | I8: % | J8: CANT. | K8: MONTO | L8: % | M8: CANT. | N8: MONTO | O8: %
A9: CONTRATACION DIRECTA | B9: 5 | C9: 740000000 | D9: 5 | E9: 740000000 | F9: =+D9/B9 -> 1 | G9: =+B9-D9 -> 0 | H9: 0 | I9: =+G9/B9 -> 0 | J9: 3 | K9: 560000000 | L9: =+J9/D9 -> 0.6 | M9: 1 | N9: 130000000 | O9: =+M9/D9 -> 0.2 | P9: =+B9-D9-G9 -> 0 | Q9: 0
A10: LICITACION PUBLICA NACIONAL (2051/03) | B10: 7 | C10: 25830000000 | D10: 6 | E10: 24330000000 | F10: =+D10/B10 -> 0.8571428571 | G10: 1 | H10: 1500000000 | I10: 0.1428571429 | J10: 0 | K10: 0 | L10: =+J10/D10 -> 0 | M10: 3 | N10: 16830000000 | O10: =+M10/D10 -> 0.5 | P10: 0 | Q10: 0
A11: LICITACION POR CONCURSO DE OFERTAS | B11: 13 | C11: 7405387000 | D11: 12 | E11: 6305387000 | F11: 0.9230769231 | G11: 1 | H11: 1100000000 | I11: 0.07692307692 | J11: 1 | K11: 330000000 | L11: 0.08333333333 | M11: 5 | N11: 2045000000 | O11: 0.4166666667 | P11: 0 | Q11: 0
A12: LOCACION DE INMUEBLES | B12: 1 | C12: 473976000 | D12: 1 | E12: 473976000 | F12: 1 | G12: 0 | H12: 0 | I12: 0 | J12: 0 | K12: 0 | L12: 0 | M12: 1 | N12: 473976000 | O12: 1 | P12: =+B12-D12-G12 -> 0
A13: CONVENIO MARCO | B13: 4 | C13: 1640000000 | D13: 2 | E13: 1570000000 | F13: 0.5 | G13: =+B13-D13 -> 2 | H13: 70000000 | I13: 0.5 | J13: 0 | K13: 0 | L13: 0 | M13: 2 | N13: =1100000000+470000000 -> 1570000000 | O13: 1 | P13: =+B13-D13-G13 -> 0
A14: LICITACION PUBLICA NACIONAL (7021/22) | B14: 14 | C14: 365178000000 | D14: 1 | E14: 3200000000 | F14: 0.07142857143 | G14: 13 | H14: 361978000000 | I14: 0.9285714286 | J14: 0 | K14: 0 | L14: 0 | M14: 0 | N14: 0 | O14: 0 | P14: =+B14-D14-G14 -> 0
A15: LICITACION DE MENOR CUANTIA | B15: 26 | C15: 6070000000 | D15: 3 | E15: 573000000 | F15: =+D15/B15 -> 0.1153846154 | G15: 23 | H15: 5497000000 | I15: =+G15/B15 -> 0.8846153846 | J15: 1 | K15: 53000000 | L15: 0 | M15: 0 | N15: 0 | O15: 0 | P15: 0
A16: EXCLUIDOS | B16: 2 | C16: 3200000000 | D16: 2 | E16: 3200000000 | F16: 1 | G16: 0 | H16: 0 | I16: 0 | J16: 1 | K16: 1600000000 | L16: 0.5 | M16: 0 | N16: 0 | O16: 0 | P16: 0
A17: TOTALES | B17: =SUM(B9:B16) -> 72 | C17: 410537363000 | D17: 32 | E17: 40392363000 | F17: =+D17/B17 -> 0.4444444444 | G17: 40 | H17: 370145000000 | I17: =+G17/B17 -> 0.5555555556 | J17: 6 | K17: 2543000000 | L17: =+J17/B17 -> 0.08333333333 | M17: =SUM(M9:M16) -> 12 | N17: =SUM(N9:N16) -> 21048976000 | O17: =+M17/B17 -> 0.1666666667 | Q17: =+O17+L17 -> 0.25 | R17: =+D17+G17 -> 72 | S17: =+E17+H17 -> 410537363000
Q18: DIF | R18: =+R17-B17 -> 0 | S18: =+C17-S17 -> 0
